fUST/lending_fUST_20240629
["ID","MTS","AMOUNT","RATE_DAILY","PERIOD"]
[330599660,1719609060457,-500.0,0.00023013,4]
[330599661,1719609060466,-500.0,0.00023013,4]
[330599662,1719609060475,-500.0,0.00023013,4]
[330599663,1719609060483,-1916.95,0.00023013,4]
[330599664,1719609060493,-500.0,0.00023013,4]
[330599665,1719609060502,-500.0,0.00023013,4]
[330599666,1719609060511,-500.0,0.00023013,4]
[330599667,1719609060520,-911.28,0.00023013,4]
[330599668,1719609060530,-3430.95,0.00023013,4]
[330599669,1719609060538,-1274.5,0.00023013,2]
[330599670,1719609060547,-500.0,0.00023013,4]
[330599671,1719609060557,-786.07,0.00023013,4]
[330599672,1719609060566,-1472.43,0.00023013,4]
[330599673,1719609060575,-2096.46,0.00023013,4]
[330599674,1719609060584,-500.0,0.00023013,4]
[330599675,1719609060594,-32522.18,0.00023013,4]
[330599676,1719609060603,-500.0,0.00023013,4]
[330599677,1719609060612,-500.0,0.00023013,4]
[330599678,1719609060621,-713.1,0.00023013,4]
[330599679,1719609060630,-1080.39,0.00023013,4]
[330599680,1719609060640,-488.49855404,0.00023013,4]
[330599681,1719609060649,-500.0,0.00023013,4]
[330599682,1719609060658,-270.32214558,0.00023013,4]
[330599683,1719609060667,-500.0,0.00023013,4]
[330599684,1719609060676,-2759.26,0.00023013,4]
[330599685,1719609060686,-1561.25,0.00023013,4]
[330599686,1719609060696,-500.0,0.00023013,4]
[330599687,1719609060707,-500.0,0.00023013,4]
[330599688,1719609060716,-1056.09,0.00023013,4]
[330599689,1719609060725,-500.0,0.00023013,4]
[330599690,1719609060734,-500.0,0.00023013,4]
[330599691,1719609060743,-626.89,0.00023013,4]
[330599692,1719609060753,-644.23,0.00023013,4]
[330599693,1719609060762,-500.0,0.00023013,4]
[330599694,1719609060771,-919.74,0.00023013,4]
[330599695,1719609060780,-500.0,0.00023013,4]
[330599696,1719609060790,-500.0,0.00023013,4]
[330599697,1719609060799,-1508.74,0.00023013,4]
[330599698,1719609060808,-526.73,0.00023013,4]
[330599699,1719609060817,-1445.87,0.00023013,4]
[330599700,1719609060826,-500.0,0.00023013,4]
[330599701,1719609060836,-500.0,0.00023013,4]
[330599702,1719609060845,-500.0,0.00023013,4]
[330599703,1719609060855,-500.0,0.00023013,4]
[330599704,1719609060864,-500.0,0.00023013,4]
[330599705,1719609060876,-900.52,0.00023013,4]
[330599706,1719609060885,-500.0,0.00023013,2]
[330599707,1719609060894,-500.0,0.00023013,4]
[330599708,1719609060904,-2606.56,0.00023013,4]
[330599709,1719609060913,-500.0,0.00023013,4]
[330599710,1719609060922,-2915.15,0.00023013,4]
[330599711,1719609060931,-1075.26,0.00023013,4]
[330599712,1719609060940,-898.0,0.00023013,4]
[330599713,1719609060950,-1017.0,0.00023013,4]
[330599714,1719609060959,-500.0,0.00023013,4]
[330599715,1719609060968,-500.0,0.00023013,4]
[330599716,1719609060977,-500.0,0.00023013,4]
[330599717,1719609060986,-769.17,0.00023013,4]
[330599718,1719609060996,-500.0,0.00023013,4]
[330599719,1719609061011,-724.43,0.00023013,4]
[330599720,1719609061101,-500.0,0.00023013,4]
[330599721,1719609061110,-503.39612278,0.00023013,4]
[330599722,1719609061120,-500.0,0.00023013,4]
[330599723,1719609061130,-1811.19,0.00023013,4]
[330599724,1719609061139,-500.0,0.00023013,4]
[330599725,1719609061148,-500.0,0.00023013,4]
[330599726,1719609061158,-500.0,0.00023013,4]
[330599727,1719609061167,-500.0,0.00023013,4]
[330599728,1719609061175,-555.14,0.00023013,4]
[330599729,1719609061185,-745.75,0.00023013,4]
[330599730,1719609061195,-500.0,0.00023013,4]
[330599731,1719609061207,-1060.47,0.00023013,4]
[330599732,1719609061217,-561.23,0.00023013,4]
[330599733,1719609061225,-1646.45,0.00023013,4]
[330599734,1719609061237,-500.0,0.00023013,4]
[330599735,1719609061247,-500.0,0.00023013,4]
[330599736,1719609061256,-500.0,0.00023013,4]
[330599737,1719609061265,-1636.48,0.00023013,4]
[330599738,1719609061274,-500.0,0.00023013,4]
[330599739,1719609061283,-2903.41,0.00023013,4]
[330599740,1719609061293,-500.0,0.00023013,4]
[330599741,1719609061302,-500.0,0.00023013,4]
[330599742,1719609061311,-23113.58,0.00023013,4]
[330599743,1719609061320,-882.01,0.00023013,4]
[330599744,1719609061330,-500.0,0.00023013,4]
[330599745,1719609061339,-1643.03,0.00023013,4]
[330599746,1719609061348,-500.0,0.00023013,4]
[330599747,1719609061358,-500.0,0.00023013,4]
[330599748,1719609061367,-628.52,0.00023013,4]
[330599749,1719609061377,-500.0,0.00023013,4]
[330599750,1719609061386,-500.0,0.00023013,4]
[330599751,1719609061394,-1414.53,0.00023013,4]
[330599752,1719609061404,-500.0,0.00023013,4]
[330599753,1719609061413,-500.0,0.00023013,4]
[330599754,1719609061422,-11320.71,0.00023013,4]
[330599755,1719609061431,-500.0,0.00023013,4]
[330599756,1719609061440,-500.0,0.00023013,4]
[330599757,1719609061451,-555.85,0.00023013,4]
[330599758,1719609061460,-500.0,0.00023013,4]
[330599759,1719609061469,-644.76,0.00023013,4]
[330599760,1719609061478,-585.25,0.00023013,4]
[330599761,1719609061486,-756.94,0.00023013,4]
[330599762,1719609061496,-500.0,0.00023013,4]
[330599763,1719609061505,-1188.67,0.00023013,4]
[330599764,1719609061514,-594.50491787,0.00023013,4]
[330599765,1719609061523,-500.0,0.00023013,4]
[330599766,1719609061532,-1280.69,0.00023013,4]
[330599767,1719609061541,-788.02,0.00023013,4]
[330599768,1719609061550,-500.0,0.00023013,4]
[330599769,1719609061560,-3712.0,0.00023013,4]
[330599770,1719609061570,-2279.24,0.00023013,4]
[330599771,1719609061578,-500.0,0.00023013,4]
[330599772,1719609061588,-500.0,0.00023013,4]
[330599773,1719609061597,-4032.61,0.00023013,4]
[330599774,1719609061607,-227.79,0.00023013,4]
[330599775,1719609061617,-1001.0,0.00023013,4]
[330599776,1719609061626,-2069.86,0.00023013,4]
[330599777,1719609061635,-500.0,0.00023013,4]
[330599778,1719609061645,-5418.01,0.00023013,4]
[330599779,1719609061654,-826.19,0.00023013,4]
[330599780,1719609061663,-500.0,0.00023013,4]
[330599781,1719609061672,-500.0,0.00023013,4]
[330599782,1719609061682,-803.14,0.00023013,4]
[330599783,1719609061691,-939.69,0.00023013,4]
[330599784,1719609061704,-60694.4,0.00023013,4]
[330599785,1719609061713,-2175.07,0.00023013,4]
[330599786,1719609061722,-3733.28,0.00023013,4]
[330599787,1719609061734,-500.0,0.00023013,4]
[330599788,1719609061743,-500.0,0.00023013,4]
[330599789,1719609061753,-521.59,0.00023013,4]
[330599790,1719609061762,-500.0,0.00023013,4]
[330599791,1719609061771,-500.0,0.00023013,4]
[330599792,1719609061780,-7121.33,0.00023013,4]
[330599793,1719609061789,-834.09,0.00023013,4]
[330599794,1719609061799,-4094.82,0.00023013,4]
[330599795,1719609061809,-582.3,0.00023013,4]
[330599796,1719609061818,-689.13,0.00023013,4]
[330599797,1719609061828,-1575.66,0.00023013,4]
[330599798,1719609061837,-1770.99,0.00023013,4]
[330599799,1719609061846,-12345.82,0.00023013,4]
[330599800,1719609061856,-651.08,0.00023013,4]
[330599801,1719609061865,-563.67,0.00023013,4]
[330599802,1719609061874,-500.0,0.00023013,4]
[330599803,1719609061883,-500.0,0.00023013,4]
[330599804,1719609061892,-500.0,0.00023013,4]
[330599805,1719609061901,-1018.4,0.00023013,4]
[330599806,1719609061910,-500.0,0.00023013,4]
[330599807,1719609061920,-500.0,0.00023013,4]
[330599808,1719609061929,-2468.56,0.00023013,4]
[330599809,1719609061938,-12723.98,0.00023013,4]
[330599810,1719609061950,-500.0,0.00023013,4]
[330599811,1719609061959,-500.0,0.00023013,4]
[330599812,1719609061968,-1210.66,0.00023013,4]
[330599813,1719609061977,-500.0,0.00023013,2]
[330599814,1719609061986,-923.2,0.00023013,4]
[330599815,1719609061994,-2010.28,0.00023013,4]
[330599816,1719609062006,-500.0,0.00023013,4]
[330599817,1719609062016,-4814.91,0.00023013,4]
[330599818,1719609062025,-11513.48,0.00023013,4]
[330599819,1719609062034,-500.0,0.00023013,4]
[330599820,1719609062044,-506.2,0.00023013,4]
[330599821,1719609062055,-10418.44,0.00023013,4]
[330599822,1719609062065,-500.0,0.00023013,4]
[330599823,1719609062074,-500.0,0.00023013,4]
[330599824,1719609062084,-500.0,0.00023013,4]
[330599825,1719609062097,-500.0,0.00023013,4]
[330599826,1719609062106,-500.0,0.00023013,4]
[330599827,1719609062115,-655.11,0.00023013,4]
[330599828,1719609062124,-959.34,0.00023013,4]
[330599829,1719609062132,-1894.29,0.00023013,4]
[330599830,1719609062141,-1813.93,0.00023013,4]
[330599831,1719609062150,-500.0,0.00023013,4]
[330599832,1719609062158,-1715.47,0.00023013,4]
[330599833,1719609062167,-1262.66,0.00023013,4]
[330599834,1719609062175,-500.0,0.00023013,4]
[330599835,1719609062184,-2194.15,0.00023013,4]
[330599836,1719609062193,-761.05,0.00023013,4]
[330599837,1719609062203,-535.3,0.00023013,4]
[330599838,1719609062212,-1055.6,0.00023013,4]
[330599839,1719609062221,-1710.79,0.00023013,4]
[330599840,1719609062230,-500.0,0.00023013,4]
[330599841,1719609062238,-528.59,0.00023013,4]
[330599842,1719609062248,-979.7,0.00023013,4]
[330599843,1719609062257,-500.0,0.00023013,4]
[330599844,1719609062266,-500.0,0.00023013,4]
[330599845,1719609062275,-628.71,0.00023013,4]
[330599846,1719609062285,-750.32,0.00023013,4]
[330599847,1719609062294,-1021.86,0.00023013,4]
[330599848,1719609062303,-500.0,0.00023013,4]
[330599849,1719609062312,-586.77,0.00023013,4]
[330599850,1719609062321,-500.0,0.00023013,4]
[330599851,1719609062331,-10772.11,0.00023013,4]
[330599852,1719609062340,-740.26,0.00023013,4]
[330599853,1719609062349,-1018.02,0.00023013,4]
[330599854,1719609062359,-3099.44,0.00023013,4]
[330599855,1719609062446,-4038.76,0.00023013,4]
[330599856,1719609062458,-1461.16,0.00023013,4]
[330599857,1719609062467,-2850.21,0.00023013,4]
[330599858,1719609062476,-500.0,0.00023013,4]
[330599859,1719609062487,-669.76,0.00023013,4]
[330599860,1719609062496,-4127.34,0.00023013,4]
[330599861,1719609062506,-546.35,0.00023013,4]
[330599862,1719609062515,-500.0,0.00023013,4]
[330599863,1719609062524,-600.27,0.00023013,4]
[330599864,1719609062533,-500.0,0.00023013,4]
[330599865,1719609062543,-500.0,0.00023013,4]
[330599866,1719609062552,-4987.38,0.00023013,4]
[330599867,1719609062561,-500.0,0.00023013,4]
[330599868,1719609062570,-3352.17,0.00023013,4]
[330599869,1719609062579,-621.88,0.00023013,4]
[330599870,1719609062588,-683.47,0.00023013,4]
[330599871,1719609062598,-1525.02,0.00023013,4]
[330599872,1719609062607,-23476.31,0.00023013,4]
[330599873,1719609062618,-500.0,0.00023013,4]
[330599874,1719609062628,-500.0,0.00023013,2]
[330599875,1719609062638,-6462.45,0.00023013,4]
[330599876,1719609062648,-500.0,0.00023013,4]
[330599877,1719609062657,-9156.13,0.00023013,4]
[330599878,1719609062666,-1587.41,0.00023013,4]
[330599879,1719609062675,-540.77333967,0.00023013,4]
[330599880,1719609062684,-500.0,0.00023013,4]
[330599881,1719609062694,-2718.89,0.00023013,4]
[330599882,1719609062706,-500.0,0.00023013,4]
[330599883,1719609062716,-2807.05,0.00023013,4]
[330599884,1719609062726,-1320.21,0.00023013,4]
[330599885,1719609062736,-11697.5,0.00023013,4]
[330599886,1719609062746,-150.23234564,0.00023059,2]
[330599887,1719609062756,-350.0,0.00023172,2]
[330599888,1719609062766,-250.0,0.00023185,2]
[330599889,1719609062775,-500.0,0.00023287,4]
[330599890,1719609062785,-1053.33,0.00023287,4]
[330599891,1719609062795,-581.35,0.00023287,4]
[330599892,1719609062805,-500.0,0.00023287,4]
[330599893,1719609062814,-500.0,0.00023287,4]
[330599894,1719609062824,-500.0,0.00023287,4]
[330599895,1719609062834,-500.0,0.00023287,2]
[330599896,1719609062843,-2317.09,0.00023287,4]
[330599897,1719609062853,-184.30614123,0.00023287,4]
[330599898,1719609062861,-922.96,0.00023287,4]
[330599899,1719609062872,-834.68,0.00023287,4]
[330599900,1719609062882,-500.0,0.00023287,4]
[330599901,1719609062892,-500.0,0.00023287,4]
[330599902,1719609062901,-500.0,0.00023287,4]
[330599903,1719609062911,-500.0,0.00023287,4]
[330599904,1719609062920,-803.38,0.00023287,4]
[330599905,1719609062930,-1513.65,0.00023287,4]
[330599906,1719609062939,-500.0,0.00023287,4]
[330599907,1719609062952,-500.0,0.00023287,4]
[330599908,1719609062961,-969.26,0.00023287,4]
[330599909,1719609062970,-580.44,0.00023287,4]
[330599910,1719609062979,-1279.12,0.00023287,4]
[330599911,1719609062989,-750.55,0.00023287,4]
[330599912,1719609063000,-527.85,0.00023287,4]
[330599913,1719609063011,-762.9,0.00023287,4]
[330599914,1719609063030,-500.0,0.00023287,4]
[330599915,1719609063040,-500.0,0.00023287,4]
[330599916,1719609063050,-794.3,0.00023287,4]
[330599917,1719609063060,-500.0,0.00023287,4]
[330599918,1719609063069,-500.0,0.00023287,4]
[330599919,1719609063079,-500.0,0.00023287,4]
[330599920,1719609063088,-500.0,0.00023287,4]
[330599921,1719609063097,-500.0,0.00023287,4]
[330599922,1719609063106,-500.0,0.00023287,4]
[330599923,1719609063115,-526.04,0.00023287,4]
[330599924,1719609063124,-819.47,0.00023287,4]
[330599925,1719609063134,-905.98,0.00023287,4]
[330599926,1719609063143,-500.0,0.00023287,4]
[330599927,1719609063152,-500.0,0.00023287,4]
[330599928,1719609063161,-500.0,0.00023287,4]
[330599929,1719609063171,-1589.77,0.00023287,4]
[330599930,1719609063180,-500.0,0.00023287,4]
[330599931,1719609063189,-500.0,0.00023287,4]
[330599932,1719609063201,-1414.16,0.00023287,4]
[330599933,1719609063211,-514.41,0.00023287,4]
[330599934,1719609063221,-500.0,0.00023287,4]
[330599935,1719609063230,-457.00117119,0.00023287,4]
[330599936,1719609063239,-549.62,0.00023287,4]
[330599937,1719609063248,-1020.77,0.00023287,4]
[330599938,1719609063258,-500.0,0.00023287,4]
[330599939,1719609063268,-490.48271305,0.00023287,4]
[330599940,1719609063277,-2333.86,0.00023287,4]
[330599941,1719609063287,-619.1442786,0.00023287,4]
[330599942,1719609063296,-500.0,0.00023287,4]
[330599943,1719609063306,-718.41,0.00023287,4]
[330599944,1719609063315,-632.14,0.00023287,4]
[330599945,1719609063325,-2254.28,0.00023287,4]
[330599946,1719609063335,-1134.77,0.00023287,4]
[330599947,1719609063344,-500.0,0.00023287,4]
[330599948,1719609063354,-500.0,0.00023287,4]
[330599949,1719609063363,-500.0,0.00023287,4]
[330599950,1719609063372,-552.34,0.00023287,4]
[330599951,1719609063382,-655.59,0.00023287,4]
[330599952,1719609063391,-500.0,0.00023287,4]
[330599953,1719609063400,-293.58898388,0.00023287,4]
[330599954,1719609063409,-500.0,0.00023287,4]
[330599955,1719609063418,-1584.44,0.00023287,4]
[330599956,1719609063427,-705.63,0.00023287,4]
[330599957,1719609063437,-500.0,0.00023287,4]
[330599958,1719609063446,-992.69,0.00023287,4]
[330599959,1719609063457,-963.94,0.00023287,4]
[330599960,1719609063466,-500.0,0.00023287,4]
[330599961,1719609063475,-2618.52,0.00023287,4]
[330599962,1719609063484,-500.0,0.00023287,4]
[330599963,1719609063494,-775.03,0.00023287,4]
[330599964,1719609063503,-500.0,0.00023287,4]
[330599965,1719609063512,-500.0,0.00023287,4]
[330599966,1719609063521,-500.0,0.00023287,4]
[330599967,1719609063531,-1047.09,0.00023287,4]
[330599968,1719609063540,-500.0,0.00023287,4]
[330599969,1719609063550,-597.64,0.00023287,4]
[330599970,1719609063559,-500.0,0.00023287,4]
[330599971,1719609063569,-1602.1,0.00023287,4]
[330599972,1719609063579,-619.46,0.00023287,4]
[330599973,1719609063588,-500.0,0.00023287,4]
[330599974,1719609063598,-748.7,0.00023287,4]
[330599975,1719609063607,-1252.86,0.00023287,4]
[330599976,1719609063617,-500.0,0.00023287,4]
[330599977,1719609063627,-500.0,0.00023287,4]
[330599978,1719609063636,-725.68,0.00023287,4]
[330599979,1719609063722,-3105.39,0.00023287,4]
[330599980,1719609063731,-500.0,0.00023287,4]
[330599981,1719609063741,-500.0,0.00023287,4]
[330599982,1719609063751,-500.0,0.00023287,4]
[330599983,1719609063760,-500.0,0.00023287,4]
[330599984,1719609063771,-1391.86,0.00023287,4]
[330599985,1719609063780,-500.0,0.00023287,4]
[330599986,1719609063790,-1221.39,0.00023287,4]
[330599987,1719609063799,-253.61921115,0.00023287,4]
[330599988,1719609063809,-598.89,0.00023287,4]
[330599989,1719609063819,-500.0,0.00023287,4]
[330599990,1719609063829,-761.97,0.00023287,4]
[330599991,1719609063840,-500.0,0.00023287,4]
[330599992,1719609063850,-500.0,0.00023287,4]
[330599993,1719609063860,-645.96466386,0.00023287,4]
[330599994,1719609063870,-500.0,0.00023287,4]
[330599995,1719609063879,-1916.95,0.00023287,4]
[330599996,1719609063889,-500.0,0.00023287,4]
[330599997,1719609063899,-500.0,0.00023287,4]
[330599998,1719609063909,-911.28,0.00023287,4]
[330599999,1719609063918,-3430.95,0.00023287,4]
[330600000,1719609063928,-1274.5,0.00023287,2]
[330600001,1719609063938,-500.0,0.00023287,4]
[330600002,1719609063947,-786.07,0.00023287,4]
[330600003,1719609063960,-1472.43,0.00023287,4]
[330600004,1719609063970,-2096.46,0.00023287,4]
[330600005,1719609063980,-500.0,0.00023287,4]
[330600006,1719609063990,-32522.18,0.00023287,4]
[330600007,1719609064000,-500.0,0.00023287,4]
[330600008,1719609064016,-500.0,0.00023287,4]
[330600009,1719609064026,-713.1,0.00023287,4]
[330600010,1719609064036,-1080.39,0.00023287,4]
[330600011,1719609064046,-500.0,0.00023287,4]
[330600012,1719609064059,-500.0,0.00023287,4]
[330600013,1719609064069,-2759.26,0.00023287,4]
[330600014,1719609064079,-1561.25,0.00023287,4]
[330600015,1719609064089,-521.08179135,0.00023287,4]
[330600016,1719609064099,-567.29568376,0.00023287,4]
[330600017,1719609064110,-1056.09,0.00023287,4]
[330600018,1719609064121,-500.0,0.00023287,4]
[330600019,1719609064132,-500.0,0.00023287,4]
[330600020,1719609064142,-626.89,0.00023287,4]
[330600021,1719609064153,-644.23,0.00023287,4]
[330600022,1719609064164,-500.0,0.00023287,4]
[330600023,1719609064175,-919.74,0.00023287,4]
[330600024,1719609064186,-500.0,0.00023287,4]
[330600025,1719609064196,-500.0,0.00023287,4]
[330600026,1719609064210,-1508.74,0.00023287,4]
[330600027,1719609064220,-526.73,0.00023287,4]
[330600028,1719609064230,-500.0,0.00023287,4]
[330600029,1719609064240,-516.22109104,0.00023287,4]
[330600030,1719609064250,-500.0,0.00023287,4]
[330600031,1719609064260,-500.0,0.00023287,4]
[330600032,1719609064269,-500.0,0.00023287,4]
[330600033,1719609064279,-900.52,0.00023287,4]
[330600034,1719609064288,-500.0,0.00023287,2]
[330600035,1719609064298,-500.0,0.00023287,4]
[330600036,1719609064312,-2606.56,0.00023287,4]
[330600037,1719609064335,-500.0,0.00023287,4]
[330600038,1719609064351,-2915.15,0.00023287,4]
[330600039,1719609064373,-1075.26,0.00023287,4]
[330600040,1719609064396,-898.0,0.00023287,4]
[330600041,1719609064415,-1017.0,0.00023287,4]
[330600042,1719609064434,-500.0,0.00023287,4]
[330600043,1719609064449,-412.16047895,0.00023287,4]
[330600044,1719609064469,-500.0,0.00023287,4]
[330600045,1719609064487,-769.17,0.00023287,4]
[330600046,1719609064512,-474.02674537,0.00023287,4]
[330600047,1719609064524,-724.43,0.00023287,4]
[330600048,1719609064543,-500.0,0.00023287,4]
[330600049,1719609064559,-500.0,0.00023287,4]
[330600050,1719609064575,-1811.19,0.00023287,4]
[330600051,1719609064589,-500.0,0.00023287,4]
[330600052,1719609064604,-500.0,0.00023287,4]
[330600053,1719609064619,-500.0,0.00023287,4]
[330600054,1719609064634,-500.0,0.00023287,4]
[330600055,1719609064648,-555.14,0.00023287,4]
[330600056,1719609064663,-745.75,0.00023287,4]
[330600057,1719609064677,-500.0,0.00023287,4]
[330600058,1719609064692,-1060.47,0.00023287,4]
[330600059,1719609064708,-561.23,0.00023287,4]
[330600060,1719609064722,-1646.45,0.00023287,4]
[330600061,1719609064736,-500.0,0.00023287,4]
[330600062,1719609064752,-500.0,0.00023287,4]
[330600063,1719609064767,-563.77370373,0.00023287,4]
[330600064,1719609064781,-1636.48,0.00023287,4]
[330600065,1719609064795,-162.82157253,0.00023287,4]
[330600066,1719609064811,-2903.41,0.00023287,4]
[330600067,1719609064825,-500.0,0.00023287,4]
[330600068,1719609064840,-500.0,0.00023287,4]
[330600069,1719609064855,-23113.58,0.00023287,4]
[330600070,1719609064868,-882.01,0.00023287,4]
[330600071,1719609064883,-500.0,0.00023287,4]
[330600072,1719609064897,-1643.03,0.00023287,4]
[330600073,1719609064913,-500.0,0.00023287,4]
[330600074,1719609064927,-500.0,0.00023287,4]
[330600075,1719609064942,-628.52,0.00023287,4]
[330600076,1719609064959,-195.92411147,0.00023287,4]
[330600077,1719609064975,-500.0,0.00023287,4]
[330600078,1719609064991,-1414.53,0.00023287,4]
[330600079,1719609065007,-500.0,0.00023287,4]
[330600080,1719609065024,-500.0,0.00023287,4]
[330600081,1719609065039,-11320.71,0.00023287,4]
[330600082,1719609065057,-500.0,0.00023287,4]
[330600083,1719609065073,-500.0,0.00023287,4]
[330600084,1719609065089,-555.85,0.00023287,4]
[330600085,1719609065105,-500.0,0.00023287,4]
[330600086,1719609065120,-644.76,0.00023287,4]
[330600087,1719609065134,-585.25,0.00023287,4]
[330600088,1719609065150,-756.94,0.00023287,4]
[330600089,1719609065165,-500.0,0.00023287,4]
[330600090,1719609065181,-1188.67,0.00023287,4]
[330600091,1719609065195,-500.0,0.00023287,4]
[330600092,1719609065211,-1280.69,0.00023287,4]
[330600093,1719609065329,-788.02,0.00023287,4]
[330600094,1719609065339,-500.0,0.00023287,4]
[330600095,1719609065348,-3712.0,0.00023287,4]
[330600096,1719609065356,-2279.24,0.00023287,4]
[330600097,1719609065365,-500.0,0.00023287,4]
[330600098,1719609065374,-500.0,0.00023287,4]
[330600099,1719609065383,-4032.61,0.00023287,4]
[330600100,1719609065392,-227.79,0.00023287,4]
[330600101,1719609065402,-1001.0,0.00023287,4]
[330600102,1719609065411,-2069.86,0.00023287,4]
[330600103,1719609065419,-500.0,0.00023287,4]
[330600104,1719609065429,-5418.01,0.00023287,4]
[330600105,1719609065438,-826.19,0.00023287,4]
[330600106,1719609065446,-406.09542846,0.00023287,4]
[330600107,1719609065457,-500.0,0.00023287,4]
[330600108,1719609065467,-803.14,0.00023287,4]
[330600109,1719609065476,-939.69,0.00023287,4]
[330600110,1719609065485,-60694.4,0.00023287,4]
[330600111,1719609065494,-2175.07,0.00023287,4]
[330600112,1719609065503,-3733.28,0.00023287,4]
[330600113,1719609065512,-254.4504341,0.00023287,4]
[330600114,1719609065521,-500.0,0.00023287,4]
[330600115,1719609065530,-500.0,0.00023287,4]
[330600116,1719609065539,-521.59,0.00023287,4]
[330600117,1719609065548,-7121.33,0.00023287,4]
[330600118,1719609065558,-500.0,0.00023287,4]
[330600119,1719609065567,-834.09,0.00023287,4]
[330600120,1719609065576,-4094.82,0.00023287,4]
[330600121,1719609065586,-582.3,0.00023287,4]
[330600122,1719609065596,-689.13,0.00023287,4]
[330600123,1719609065605,-1575.66,0.00023287,4]
[330600124,1719609065615,-1770.99,0.00023287,4]
[330600125,1719609065625,-12345.82,0.00023287,4]
[330600126,1719609065634,-651.08,0.00023287,4]
[330600127,1719609065643,-563.67,0.00023287,4]
[330600128,1719609065653,-500.0,0.00023287,4]
[330600129,1719609065663,-500.0,0.00023287,4]
[330600130,1719609065672,-500.0,0.00023287,4]
[330600131,1719609065682,-1018.4,0.00023287,4]
[330600132,1719609065692,-500.0,0.00023287,4]
[330600133,1719609065701,-500.0,0.00023287,4]
[330600134,1719609065711,-2468.56,0.00023287,4]
[330600135,1719609065720,-12723.98,0.00023287,4]
[330600136,1719609065730,-500.0,0.00023287,4]
[330600137,1719609065739,-531.22516727,0.00023287,4]
[330600138,1719609065749,-1210.66,0.00023287,4]
[330600139,1719609065759,-500.0,0.00023287,2]
[330600140,1719609065769,-923.2,0.00023287,4]
[330600141,1719609065779,-2010.28,0.00023287,4]
[330600142,1719609065788,-647.92973317,0.00023287,4]
[330600143,1719609065797,-4814.91,0.00023287,4]
[330600144,1719609065807,-11513.48,0.00023287,4]
[330600145,1719609065816,-500.0,0.00023287,4]
[330600146,1719609065825,-506.2,0.00023287,4]
[330600147,1719609065835,-10418.44,0.00023287,4]
[330600148,1719609065845,-500.0,0.00023287,4]
[330600149,1719609065855,-500.0,0.00023287,4]
[330600150,1719609065865,-500.0,0.00023287,4]
[330600151,1719609065875,-500.0,0.00023287,4]
[330600152,1719609065884,-500.0,0.00023287,4]
[330600153,1719609065894,-959.34,0.00023287,4]
[330600154,1719609065903,-655.11,0.00023287,4]
[330600155,1719609065912,-1894.29,0.00023287,4]
[330600156,1719609065922,-1813.93,0.00023287,4]
[330600157,1719609065932,-500.0,0.00023287,4]
[330600158,1719609065941,-1715.47,0.00023287,4]
[330600159,1719609065951,-1262.66,0.00023287,4]